fUST/lending_fUST_20250718
["ID","MTS","AMOUNT","RATE_DAILY","PERIOD"]
[373042967,1752846641493,-460.0,0.00016967,2]
[373042969,1752846641502,-460.0,0.00016967,2]
[373042971,1752846641512,-460.0,0.00016967,2]
[373042973,1752846641522,-460.0,0.00016967,2]
[373042975,1752846641532,-460.0,0.00016967,2]
[373042977,1752846641542,-460.0,0.00016967,2]
[373042979,1752846641551,-460.0,0.00016967,2]
[373042981,1752846641560,-460.0,0.00016967,2]
[373042983,1752846641570,-460.0,0.00016967,2]
[373042985,1752846641579,-460.0,0.00016967,2]
[373042987,1752846641588,-460.0,0.00016967,2]
[373042989,1752846641597,-460.0,0.00016967,2]
[373042991,1752846641606,-460.0,0.00016967,2]
[373042993,1752846641616,-460.0,0.00016967,2]
[373042995,1752846641625,-460.0,0.00016967,2]
[373042997,1752846641636,-460.0,0.00016967,2]
[373042999,1752846641645,-460.0,0.00016967,2]
[373043001,1752846641655,-460.0,0.00016967,2]
[373043003,1752846641664,-460.0,0.00016967,2]
[373043005,1752846641674,-460.0,0.00016967,2]
[373043007,1752846641683,-460.0,0.00016967,2]
[373043009,1752846641692,-460.0,0.00016967,2]
[373043011,1752846641701,-460.0,0.00016967,2]
[373043013,1752846641711,-460.0,0.00016967,2]
[373043015,1752846641720,-460.0,0.00016967,2]
[373043017,1752846641730,-460.0,0.00016967,2]
[373043019,1752846641739,-460.0,0.00016967,2]
[373043021,1752846641749,-499.20583351,0.00016967,2]
[373043023,1752846641758,-460.0,0.00016967,2]
[373043025,1752846641767,-460.0,0.00016967,2]
[373043027,1752846641777,-460.0,0.00016967,2]
[373043029,1752846641786,-460.0,0.00016967,2]
[373043031,1752846641795,-460.0,0.00016967,2]
[373043033,1752846641805,-460.0,0.00016967,2]
[373043035,1752846641814,-460.0,0.00016967,2]
[373043037,1752846641824,-460.0,0.00016967,2]
[373043039,1752846641833,-460.0,0.00016967,2]
[373043041,1752846641842,-460.0,0.00016967,2]
[373043043,1752846641852,-465.13879666,0.00016967,2]
[373043045,1752846641861,-460.0,0.00016967,2]
[373043047,1752846641870,-460.0,0.00016967,2]
[373043049,1752846641880,-460.0,0.00016967,2]
[373043051,1752846641889,-460.0,0.00016967,2]
[373043053,1752846641898,-460.0,0.00016967,2]
[373043055,1752846641908,-460.0,0.00016967,2]
[373043057,1752846641918,-460.0,0.00016967,2]
[373043059,1752846641927,-460.0,0.00016967,2]
[373043061,1752846641936,-460.0,0.00016967,2]
[373043063,1752846641946,-460.0,0.00016967,2]
[373043065,1752846641960,-460.0,0.00016967,2]
[373043067,1752846641969,-460.0,0.00016967,2]
[373043069,1752846641978,-408.32922336,0.00016967,2]
[373043071,1752846641992,-584.64,0.00016967,2]
[373043073,1752846642001,-460.0,0.00016967,2]
[373043075,1752846642011,-460.0,0.00016967,2]
[373043077,1752846642020,-460.0,0.00016967,2]
[373043079,1752846642031,-542.17,0.00016967,2]
[373043081,1752846642040,-460.0,0.00016967,2]
[373043083,1752846642049,-460.0,0.00016967,2]
[373043085,1752846642060,-460.0,0.00016967,2]
[373043087,1752846642070,-460.0,0.00016967,2]
[373043089,1752846642079,-2981.59,0.00016967,2]
[373043091,1752846642088,-460.0,0.00016967,2]
[373043093,1752846642097,-460.0,0.00016967,2]
[373043095,1752846642107,-882.79,0.00016967,2]
[373043097,1752846642116,-460.0,0.00016967,2]
[373043099,1752846642126,-440.8679506,0.00016967,2]
[373043101,1752846642137,-460.0,0.00016967,2]
[373043103,1752846642146,-3239.59,0.00016968,2]
[373043106,1752846642156,-1289.85,0.00016968,2]
[373043108,1752846642166,-460.0,0.00016969,2]
[373043110,1752846642175,-460.0,0.00016969,2]
[373043112,1752846642184,-227.11795465,0.00016969,2]
[373043114,1752846642194,-460.0,0.00016969,2]
[373043116,1752846642203,-460.0,0.00016969,2]
[373043118,1752846642212,-500.0,0.00016969,2]
[373043120,1752846642222,-431.33946569,0.00016973,2]
[373043132,1752846642323,-470.27935055,0.00016973,2]
[373043134,1752846642333,-502.95359699,0.00016973,2]
[373043136,1752846642343,-500.0,0.00016973,2]
[373043138,1752846642352,-500.0,0.00016973,2]
[373043140,1752846642362,-500.0,0.00016973,2]
[373043142,1752846642375,-500.0,0.00016973,2]
[373043144,1752846642386,-211.91057932,0.000172,2]
[373043146,1752846642396,-500.0,0.000172,2]
[373043148,1752846642405,-501.48525165,0.000172,2]
[373043150,1752846642415,-1298.35,0.0001722,2]
[373043153,1752846642424,-1845.69,0.0001722,2]
[373043155,1752846642434,-460.0,0.0001722,2]
[373043157,1752846642444,-1222.58,0.0001722,2]
[373043159,1752846642453,-257.02225709,0.00017238,2]
[373043161,1752846642463,-2892.86,0.00017238,2]
[373043163,1752846642472,-460.0,0.00017238,2]
[373043165,1752846642482,-463.75,0.00017238,2]
[373043167,1752846642492,-3857.05,0.00017238,2]
[373043169,1752846642501,-460.0,0.00017238,2]
[373043171,1752846642511,-460.0,0.00017238,2]
[373043173,1752846642520,-1821.61,0.00017238,2]
[373043175,1752846642530,-460.0,0.00017238,2]
[373043177,1752846642540,-460.0,0.00017238,2]
[373043179,1752846642550,-460.0,0.00017238,2]
[373043181,1752846642560,-460.0,0.00017238,2]
[373043183,1752846642569,-1727.91,0.00017238,2]
[373043185,1752846642578,-1582.6,0.00017238,2]
[373043187,1752846642588,-460.0,0.00017238,2]
[373043189,1752846642597,-460.0,0.00017238,2]
[373043191,1752846642607,-460.0,0.00017238,2]
[373043193,1752846642616,-460.0,0.00017238,2]
[373043195,1752846642626,-460.0,0.00017238,2]
[373043197,1752846642637,-1350.12,0.00017238,2]
[373043199,1752846642646,-568.15520158,0.00017238,2]
[373043201,1752846642655,-460.0,0.00017238,2]
[373043203,1752846642665,-460.0,0.00017238,2]
[373043205,1752846642674,-460.0,0.00017238,2]
[373043207,1752846642683,-460.0,0.00017238,2]
[373043209,1752846642692,-460.0,0.00017238,2]
[373043211,1752846642702,-460.0,0.00017239,2]
[373043213,1752846642711,-460.0,0.00017239,2]
[373043215,1752846642720,-460.0,0.00017239,2]
[373043217,1752846642729,-460.0,0.00017239,2]
[373043219,1752846642739,-460.0,0.0001724,2]
[373043221,1752846642748,-460.0,0.0001724,2]
[373043223,1752846642757,-500.0,0.0001724,2]
[373043225,1752846642766,-460.0,0.0001724,2]
[373043227,1752846642776,-460.0,0.0001724,2]
[373043229,1752846642785,-460.0,0.0001724,2]
[373043231,1752846642794,-560.07,0.0001724,2]
[373043233,1752846642803,-460.0,0.0001724,2]
[373043235,1752846642812,-460.0,0.0001724,2]
[373043237,1752846642822,-277.19887783,0.0001724,2]
[373043239,1752846642831,-460.0,0.0001724,2]
[373043241,1752846642841,-460.0,0.0001724,2]
[373043243,1752846642851,-460.0,0.0001724,2]
[373043245,1752846642860,-460.0,0.0001724,2]
[373043247,1752846642870,-460.0,0.0001724,2]
[373043249,1752846642880,-460.0,0.0001724,2]
[373043251,1752846642893,-594.63,0.0001724,2]
[373043253,1752846642903,-460.0,0.0001724,2]
[373043255,1752846642912,-460.0,0.0001724,2]
[373043257,1752846642922,-460.0,0.0001724,2]
[373043259,1752846642931,-460.0,0.0001724,2]
[373043261,1752846642941,-460.0,0.0001724,2]
[373043263,1752846642950,-460.0,0.0001724,2]
[373043265,1752846642959,-460.0,0.0001724,2]
[373043267,1752846642969,-1136.15,0.0001724,2]
[373043269,1752846642978,-460.0,0.0001724,2]
[373043271,1752846642989,-901.37,0.0001724,2]
[373043273,1752846643000,-217.30146136,0.0001724,2]
[373043275,1752846643009,-460.0,0.0001724,2]
[373043277,1752846643021,-460.0,0.0001724,2]
[373043279,1752846643031,-460.0,0.0001724,2]
[373043280,1752846643041,-460.0,0.0001724,2]
[373043282,1752846643051,-460.0,0.0001724,2]
[373043284,1752846643060,-460.0,0.0001724,2]
[373043286,1752846643071,-460.0,0.0001724,2]
[373043288,1752846643082,-460.0,0.0001724,2]
[373043291,1752846643092,-306.66,0.0001724,2]
[373043293,1752846643101,-460.0,0.00017241,2]
[373043294,1752846643111,-505.10150137,0.00017241,2]
[373043296,1752846643120,-460.0,0.00017241,2]
[373043298,1752846643130,-460.0,0.00017241,2]
[373043300,1752846643143,-460.0,0.00017241,2]
[373043302,1752846643153,-460.0,0.00017241,2]
[373043304,1752846643163,-460.0,0.00017241,2]
[373043307,1752846643173,-595.54,0.00017241,2]
[373043308,1752846643183,-460.0,0.00017241,2]
[373043310,1752846643192,-460.0,0.00017241,2]
[373043312,1752846643202,-460.0,0.00017241,2]
[373043314,1752846643211,-460.0,0.00017241,2]
[373043317,1752846643221,-464.16800289,0.00017241,2]
[373043319,1752846643231,-460.0,0.00017241,2]
[373043320,1752846643240,-460.0,0.00017241,2]
[373043322,1752846643249,-460.0,0.00017241,2]
[373043324,1752846643259,-460.0,0.00017241,2]
[373043326,1752846643268,-460.0,0.00017241,2]
[373043328,1752846643278,-460.0,0.00017241,2]
[373043330,1752846643287,-460.0,0.00017241,2]
[373043332,1752846643296,-460.0,0.00017241,2]
[373043335,1752846643307,-584.64,0.00017241,2]
[373043336,1752846643316,-460.0,0.00017241,2]
[373043338,1752846643326,-460.0,0.00017241,2]
[373043340,1752846643335,-460.0,0.00017241,2]
[373043342,1752846643345,-542.17,0.00017241,2]
[373043344,1752846643354,-517.09913088,0.00017241,2]
[373043346,1752846643364,-460.0,0.00017241,2]
[373043348,1752846643373,-460.0,0.00017241,2]
[373043350,1752846643385,-2981.59,0.00017241,2]
[373043352,1752846643394,-460.0,0.00017241,2]
[373043354,1752846643404,-882.79,0.00017241,2]
[373043356,1752846643414,-460.0,0.00017241,2]
[373043358,1752846643424,-420.0,0.00017242,2]
[373043360,1752846643434,-3239.59,0.00017242,2]
[373043362,1752846643444,-1289.85,0.00017242,2]
[373043364,1752846643454,-460.0,0.00017243,2]
[373043366,1752846643463,-500.33609698,0.00017288,2]
[373043368,1752846643472,-502.10897302,0.00017288,2]
[373043370,1752846643482,-501.99323963,0.00017288,2]
[373043372,1752846643491,-500.0,0.00017288,2]
[373043374,1752846643501,-458.25357939,0.00017288,2]
[373043376,1752846643511,-501.72265827,0.00017288,2]
[373043378,1752846643520,-447.25412963,0.00017288,2]
[373043380,1752846643529,-180.07601105,0.00017288,2]
[373043382,1752846643539,-500.0,0.00017288,2]
[373043384,1752846643548,-501.11104142,0.000173,2]
[373043386,1752846643558,-502.29023931,0.000173,2]
[373043388,1752846643567,-212.74842167,0.00017313,2]
[373043390,1752846643576,-500.0,0.00017313,2]
[373043392,1752846643589,-500.0,0.00017313,2]
[373043394,1752846643598,-275.63244462,0.00017386,2]
[373043396,1752846643608,-500.0,0.00017386,2]
[373043398,1752846643618,-501.70385303,0.00017411,2]
[373043400,1752846643627,-4621.1018279,0.00017412,2]
[373043402,1752846643640,-1710.66784121,0.00017415,2]
[373043404,1752846643650,-1298.35,0.00017494,2]
[373043406,1752846643659,-1845.69,0.00017494,2]
[373043408,1752846643668,-460.0,0.00017494,2]
[373043410,1752846643678,-1222.58,0.00017494,2]
[373043412,1752846643687,-500.28196058,0.00017494,2]
[373043414,1752846643697,-500.0,0.00017495,2]
[373043416,1752846643706,-500.0,0.00017495,2]
[373043418,1752846643715,-2892.86,0.00017512,2]
[373043420,1752846643725,-463.75,0.00017512,2]
[373043422,1752846643734,-3857.05,0.00017512,2]
[373043424,1752846643743,-460.0,0.00017512,2]
[373043426,1752846643753,-1821.61,0.00017512,2]
[373043428,1752846643763,-460.0,0.00017512,2]
[373043430,1752846643772,-460.0,0.00017512,2]
[373043432,1752846643782,-460.0,0.00017512,2]
[373043434,1752846643792,-1727.91,0.00017512,2]
[373043436,1752846643801,-1582.6,0.00017512,2]
[373043438,1752846643811,-460.0,0.00017512,2]
[373043440,1752846643820,-460.0,0.00017512,2]
[373043442,1752846643829,-460.0,0.00017512,2]
[373043444,1752846643839,-460.0,0.00017512,2]
[373043446,1752846643849,-1350.12,0.00017512,2]
[373043448,1752846643858,-460.0,0.00017512,2]
[373043450,1752846643868,-460.0,0.00017512,2]
[373043452,1752846643878,-460.0,0.00017512,2]
[373043454,1752846643890,-460.0,0.00017512,2]
[373043456,1752846643900,-460.0,0.00017513,2]
[373043458,1752846643909,-460.0,0.00017513,2]
[373043460,1752846643921,-460.0,0.00017513,2]
[373043462,1752846643931,-196.95,0.00017513,2]
[373043464,1752846643941,-460.0,0.00017514,2]
[373043465,1752846643951,-460.0,0.00017514,2]
[373043466,1752846643960,-460.0,0.00017514,2]
[373043467,1752846643969,-446.72,0.00017514,2]
[373043468,1752846643979,-329.94,0.00017514,2]
[373043469,1752846643989,-244.85045969,0.00017514,2]
[373043470,1752846643999,-460.0,0.00017514,2]
[373043471,1752846644009,-460.0,0.00017514,2]
[373043472,1752846644018,-311.56479545,0.00017514,2]
[373043473,1752846644028,-460.0,0.00017514,2]
[373043474,1752846644039,-460.0,0.00017514,2]
[373043475,1752846644048,-460.0,0.00017514,2]
[373043476,1752846644058,-594.63,0.00017514,2]
[373043477,1752846644070,-460.0,0.00017514,2]
[373043478,1752846644080,-460.0,0.00017514,2]
[373043479,1752846644090,-267.58,0.00017514,2]
[373043480,1752846644100,-460.0,0.00017514,2]
[373043481,1752846644109,-460.0,0.00017514,2]
[373043482,1752846644119,-460.0,0.00017514,2]
[373043483,1752846644130,-1136.15,0.00017514,2]
[373043484,1752846644141,-460.0,0.00017514,2]
[373043485,1752846644151,-901.37,0.00017514,2]
[373043486,1752846644160,-460.0,0.00017514,2]
[373043488,1752846644169,-460.0,0.00017514,2]
[373043490,1752846644179,-460.0,0.00017514,2]
[373043492,1752846644188,-460.0,0.00017514,2]
[373043494,1752846644198,-460.0,0.00017514,2]
[373043496,1752846644207,-460.0,0.00017514,2]
[373043498,1752846644216,-460.0,0.00017514,2]
[373043500,1752846644226,-460.0,0.00017515,2]
[373043502,1752846644235,-460.0,0.00017515,2]
[373043504,1752846644244,-460.0,0.00017515,2]
[373043506,1752846644254,-460.0,0.00017515,2]
[373043508,1752846644263,-460.0,0.00017515,2]
[373043510,1752846644273,-460.0,0.00017515,2]
[373043512,1752846644282,-460.0,0.00017515,2]
[373043514,1752846644292,-460.0,0.00017515,2]
[373043516,1752846644301,-460.0,0.00017515,2]
[373043518,1752846644311,-460.0,0.00017515,2]
[373043520,1752846644320,-469.5,0.00017515,2]
[373043522,1752846644330,-460.0,0.00017515,2]
[373043533,1752846644431,-460.0,0.00017515,2]
[373043535,1752846644441,-460.0,0.00017515,2]
[373043537,1752846644451,-460.0,0.00017515,2]
[373043539,1752846644460,-584.64,0.00017515,2]
[373043541,1752846644471,-460.0,0.00017515,2]
[373043543,1752846644480,-460.0,0.00017515,2]
[373043545,1752846644489,-460.0,0.00017515,2]
[373043547,1752846644499,-542.17,0.00017515,2]
[373043549,1752846644508,-460.0,0.00017515,2]
[373043551,1752846644517,-2981.59,0.00017515,2]
[373043553,1752846644527,-882.79,0.00017515,2]
[373043555,1752846644536,-460.0,0.00017515,2]
[373043557,1752846644545,-3239.59,0.00017516,2]
[373043559,1752846644554,-1289.85,0.00017516,2]
[373043561,1752846644563,-460.0,0.00017517,2]
[373043563,1752846644572,-500.0,0.00017521,2]
[373043565,1752846644581,-505.82283817,0.00017521,2]
[373043567,1752846644590,-505.41930745,0.00017567,2]
[373043569,1752846644600,-1298.35,0.00017768,2]
[373043570,1752846644608,-1845.69,0.00017768,2]
[373043573,1752846644618,-460.0,0.00017768,2]
[373043574,1752846644627,-1222.58,0.00017768,2]
[373043576,1752846644639,-2892.86,0.00017786,2]
[373043578,1752846644648,-463.75,0.00017786,2]
[373043580,1752846644657,-3857.05,0.00017786,2]
[373043582,1752846644667,-460.0,0.00017786,2]
[373043584,1752846644677,-1821.61,0.00017786,2]
[373043586,1752846644687,-263.7,0.00017786,2]
[373043588,1752846644696,-460.0,0.00017786,2]
[373043590,1752846644705,-460.0,0.00017786,2]
[373043592,1752846644714,-1727.91,0.00017786,2]
[373043594,1752846644723,-1582.6,0.00017786,2]
[373043596,1752846644733,-460.0,0.00017786,2]
[373043598,1752846644742,-460.0,0.00017786,2]
[373043601,1752846644763,-460.0,0.00017786,2]
[373043603,1752846644773,-325.77,0.00017786,2]
[373043605,1752846644782,-1350.12,0.00017786,2]
[373043607,1752846644791,-460.0,0.00017786,2]
[373043609,1752846644801,-225.83226104,0.00017786,2]
[373043611,1752846644811,-460.0,0.00017786,2]
[373043613,1752846644821,-460.0,0.00017787,2]
[373043615,1752846644831,-460.0,0.00017787,2]
[373043617,1752846644841,-460.0,0.00017788,2]
[373043619,1752846644851,-460.0,0.00017788,2]
[373043621,1752846644862,-460.0,0.00017788,2]
[373043623,1752846644872,-460.0,0.00017788,2]
[373043625,1752846644882,-575.36,0.00017788,2]
[373043627,1752846644894,-460.0,0.00017788,2]
[373043629,1752846644905,-460.0,0.00017788,2]
[373043631,1752846644916,-594.63,0.00017788,2]
[373043633,1752846644926,-460.0,0.00017788,2]
[373043635,1752846644937,-588.6838404,0.00017788,2]
[373043637,1752846644947,-460.0,0.00017788,2]
[373043639,1752846644958,-460.0,0.00017788,2]
[373043641,1752846644968,-460.0,0.00017788,2]
[373043643,1752846644978,-1136.15,0.00017788,2]
[373043645,1752846644990,-460.0,0.00017788,2]
[373043647,1752846645001,-901.37,0.00017788,2]
[373043649,1752846645011,-460.0,0.00017788,2]
[373043651,1752846645021,-460.0,0.00017788,2]
[373043653,1752846645031,-460.0,0.00017788,2]
[373043655,1752846645043,-460.0,0.00017788,2]
[373043657,1752846645052,-460.0,0.00017788,2]
[373043659,1752846645063,-543.7,0.00017788,2]
[373043661,1752846645074,-460.0,0.00017789,2]
[373043663,1752846645084,-295.99,0.00017789,2]
[373043665,1752846645094,-460.0,0.00017789,2]
[373043667,1752846645104,-460.0,0.00017789,2]
[373043669,1752846645114,-460.0,0.00017789,2]
[373043672,1752846645128,-460.0,0.00017789,2]
[373043674,1752846645140,-460.0,0.00017789,2]
[373043676,1752846645150,-460.0,0.00017789,2]
[373043678,1752846645160,-460.0,0.00017789,2]
[373043680,1752846645171,-460.0,0.00017789,2]
[373043682,1752846645181,-460.0,0.00017789,2]
[373043684,1752846645191,-460.0,0.00017789,2]
[373043686,1752846645201,-460.0,0.00017789,2]
[373043688,1752846645211,-584.64,0.00017789,2]
[373043690,1752846645222,-460.0,0.00017789,2]
[373043693,1752846645231,-213.4,0.00017789,2]
[373043695,1752846645242,-542.17,0.00017789,2]
[373043697,1752846645252,-460.0,0.00017789,2]
[373043699,1752846645261,-2981.59,0.00017789,2]
[373043701,1752846645271,-882.79,0.00017789,2]
[373043703,1752846645280,-460.0,0.00017789,2]
[373043705,1752846645292,-3239.59,0.0001779,2]
[373043708,1752846645302,-1289.85,0.0001779,2]
[373043711,1752846645312,-460.0,0.00017791,2]
[373043713,1752846645322,-1000.0,0.00017836,2]
[373043715,1752846645332,-731.23018151,0.0001785,2]
[373043717,1752846645342,-1000.0,0.0001786,2]
[373043719,1752846645351,-2252.23550079,0.000179,2]
[373043721,1752846645362,-1523.49574857,0.0001802,2]
[373043723,1752846645372,-6087.88901129,0.0001802,2]
[373043725,1752846645382,-4619.31525862,0.0001802,2]
[373043727,1752846645394,-1298.35,0.00018042,2]
[373043729,1752846645404,-1845.69,0.00018042,2]
[373043732,1752846645414,-460.0,0.00018042,2]
[373043734,1752846645424,-1222.58,0.00018042,2]
[373043736,1752846645434,-2892.86,0.0001806,2]
[373043738,1752846645443,-463.75,0.0001806,2]
[373043740,1752846645453,-3857.05,0.0001806,2]
[373043742,1752846645463,-510.87,0.0001806,2]
[373043744,1752846645472,-1821.61,0.0001806,2]
[373043748,1752846645482,-1727.91,0.0001806,2]
[373043751,1752846645492,-1582.6,0.0001806,2]
[373043754,1752846645501,-460.0,0.0001806,2]
[373043757,1752846645513,-305.0445382,0.0001806,2]
[373043760,1752846645522,-460.0,0.0001806,2]
[373043763,1752846645531,-1350.12,0.0001806,2]
[373043767,1752846645541,-460.0,0.0001806,2]
[373043769,1752846645550,-460.0,0.0001806,2]
[373043771,1752846645559,-460.0,0.00018061,2]
[373043773,1752846645569,-479.83,0.00018062,2]
[373043775,1752846645579,-276.89,0.00018062,2]
[373043777,1752846645588,-460.0,0.00018062,2]
[373043779,1752846645598,-460.0,0.00018062,2]
[373043781,1752846645608,-460.0,0.00018062,2]
[373043783,1752846645618,-460.0,0.00018062,2]
[373043785,1752846645627,-594.63,0.00018062,2]
[373043787,1752846645639,-460.0,0.00018062,2]
[373043789,1752846645648,-460.0,0.00018062,2]
[373043791,1752846645658,-460.0,0.00018062,2]
[373043793,1752846645668,-1136.15,0.00018062,2]
[373043795,1752846645678,-460.0,0.00018062,2]
[373043797,1752846645688,-901.37,0.00018062,2]
[373043799,1752846645698,-460.0,0.00018062,2]
[373043801,1752846645707,-460.0,0.00018062,2]
[373043803,1752846645717,-460.0,0.00018062,2]
[373043805,1752846645727,-460.0,0.00018062,2]
[373043807,1752846645737,-460.0,0.00018062,2]
[373043809,1752846645746,-460.0,0.00018063,2]
[373043811,1752846645755,-285.89,0.00018063,2]
[373043813,1752846645766,-460.0,0.00018063,2]
[373043815,1752846645775,-462.11,0.00018063,2]
[373043817,1752846645785,-460.0,0.00018063,2]
[373043819,1752846645795,-460.0,0.00018063,2]
[373043821,1752846645805,-460.0,0.00018063,2]
[373043823,1752846645814,-460.0,0.00018063,2]
[373043825,1752846645824,-460.0,0.00018063,2]
[373043827,1752846645834,-460.0,0.00018063,2]
[373043829,1752846645843,-584.64,0.00018063,2]
[373043831,1752846645853,-460.0,0.00018063,2]
[373043833,1752846645862,-542.17,0.00018063,2]
[373043835,1752846645872,-460.0,0.00018063,2]
[373043837,1752846645882,-2981.59,0.00018063,2]
[373043839,1752846645894,-882.79,0.00018063,2]
[373043841,1752846645904,-460.0,0.00018063,2]
[373043843,1752846645914,-3239.59,0.00018064,2]
[373043845,1752846645924,-1289.85,0.00018064,2]
[373043847,1752846645934,-460.0,0.00018065,2]
[373043849,1752846645944,-2252.23550073,0.00018141,2]
[373043851,1752846645954,-420.0,0.00018234,2]
[373043853,1752846645963,-420.0,0.00018234,2]
[373043855,1752846645973,-6242.46520028,0.00018263,2]
[373043857,1752846645983,-1298.35,0.00018316,2]
[373043859,1752846645996,-1845.69,0.00018316,2]
[373043861,1752846646006,-460.0,0.00018316,2]
[373043863,1752846646016,-1222.58,0.00018316,2]
[373043865,1752846646026,-1313.0,0.00018325,2]
[373043867,1752846646036,-637.7,0.00018326,3]
[373043869,1752846646046,-318.86,0.00018326,3]
[373043871,1752846646056,-2892.86,0.00018334,2]
[373043873,1752846646066,-463.75,0.00018334,2]
[373043875,1752846646076,-3857.05,0.00018334,2]
[373043877,1752846646086,-1821.61,0.00018334,2]
[373043879,1752846646096,-1727.91,0.00018334,2]
[373043881,1752846646106,-1582.6,0.00018334,2]
[373043883,1752846646116,-460.0,0.00018334,2]
[373043885,1752846646126,-460.0,0.00018334,2]
[373043887,1752846646138,-1350.12,0.00018334,2]
[373043889,1752846646148,-460.0,0.00018334,2]
[373043891,1752846646159,-460.0,0.00018334,2]
[373043893,1752846646168,-304.52,0.00018336,2]
[373043895,1752846646178,-460.0,0.00018336,2]
[373043897,1752846646187,-460.0,0.00018336,2]
[373043899,1752846646197,-460.0,0.00018336,2]
[373043901,1752846646207,-594.63,0.00018336,2]
[373043903,1752846646216,-460.0,0.00018336,2]
[373043905,1752846646225,-460.0,0.00018336,2]
[373043907,1752846646235,-460.0,0.00018336,2]
[373043909,1752846646245,-1136.15,0.00018336,2]
[373043911,1752846646255,-901.37,0.00018336,2]
[373043913,1752846646264,-460.0,0.00018336,2]
[373043915,1752846646274,-540.9737927,0.00018336,2]
[373043917,1752846646283,-460.0,0.00018336,2]
[373043919,1752846646293,-460.0,0.00018336,2]
[373043921,1752846646303,-460.0,0.00018337,2]
[373043923,1752846646312,-460.0,0.00018337,2]
[373043925,1752846646322,-460.0,0.00018337,2]
[373043927,1752846646332,-460.0,0.00018337,2]
[373043929,1752846646342,-460.0,0.00018337,2]
[373043943,1752846646451,-460.0,0.00018337,2]
[373043945,1752846646461,-218.62,0.00018337,2]
[373043947,1752846646471,-584.64,0.00018337,2]
[373043949,1752846646480,-460.0,0.00018337,2]
[373043950,1752846646490,-542.17,0.00018337,2]
[373043953,1752846646499,-460.0,0.00018337,2]
[373043954,1752846646509,-2981.59,0.00018337,2]
[373043956,1752846646518,-882.79,0.00018337,2]
[373043958,1752846646527,-460.0,0.00018337,2]
[373043960,1752846646537,-3239.59,0.00018338,2]
[373043961,1752846646546,-1289.85,0.00018338,2]
[373043962,1752846646555,-1710.6678412,0.00018369,2]
[373043963,1752846646565,-2252.23550073,0.00018383,2]
[373043964,1752846646574,-600.20592339,0.00018384,2]
[373043965,1752846646583,-629.4813504,0.00018398,2]
[373043966,1752846646593,-1500.0,0.00018408,2]
[373043967,1752846646602,-160.0,0.00018517,2]
[373043968,1752846646612,-1298.35,0.0001859,2]
[373043970,1752846646621,-1845.69,0.0001859,2]
[373043972,1752846646631,-460.0,0.0001859,2]
[373043974,1752846646644,-1222.58,0.0001859,2]
[373043975,1752846646653,-223.0,0.00018603,3]
[373043977,1752846646663,-2892.86,0.00018608,2]
[373043980,1752846646672,-463.75,0.00018608,2]